[Event "Fast Chess"]
[Site "ChessKid.com"]
[Date "2020.04.10"]
[Round "2"]
[White "Georgiev, Maximilian"]
[Black "Li, Patrick"]
[Result "1-0"]
[ECO "C65"]
[WhiteElo "1353"]
[BlackElo "1000"]
[PlyCount "135"]
[EventDate "2020.??.??"]
[TimeControl "600"]
[WhiteClock "0:02:27"]
[BlackClock "0:05:30"]

1. e4 {[%emt 0:00:02]} e5 {[%emt 0:00:01]} 2. Nf3 {[%emt 0:00:01]} Nc6 {
[%emt 0:00:02]} 3. Bb5 {[%emt 0:00:00]} Bc5 {[%emt 0:00:06]} 4. O-O {[%emt 0:
00:02]} Nf6 {[%emt 0:00:06]} 5. d3 {[%emt 0:00:05]} Ng4 {[%emt 0:00:10]} 6.
Nxe5 {[%emt 0:00:08]} Ncxe5 {[%emt 0:00:08]} 7. d4 {[%emt 0:00:03]} Bxd4 {
[%emt 0:00:17]} 8. Qxd4 {[%emt 0:00:01]} Ng6 {[%emt 0:00:11]} 9. Qxg7 {[%emt 0:
00:04]} Rf8 {[%emt 0:00:07]} 10. Qxh7 {[%emt 0:00:03]} Ne7 {[%emt 0:00:10]} 11.
Bg5 {[%emt 0:00:10]} f6 {[%emt 0:00:06]} 12. Qh5+ {[%emt 0:00:05]} Rf7 {
[%emt 0:00:09]} 13. Qxg4 {[%emt 0:00:03]} a6 {[%emt 0:00:11]} 14. Bd2 {[%emt 0:
00:05]} axb5 {[%emt 0:00:05]} 15. Nc3 {[%emt 0:00:07]} d5 {[%emt 0:00:07]} 16.
Nxb5 {[%emt 0:00:05]} Bxg4 {[%emt 0:00:04]} 17. f3 {[%emt 0:00:05]} Bd7 {
[%emt 0:00:05]} 18. Nc3 {[%emt 0:00:03]} f5 {[%emt 0:00:07]} 19. exd5 {[%emt 0:
00:05]} Rg7 {[%emt 0:00:13]} 20. Bh6 {[%emt 0:00:05]} Rg6 {[%emt 0:00:06]} 21.
Bf4 {[%emt 0:00:04]} Ba4 {[%emt 0:00:17]} 22. b3 {[%emt 0:00:04]} Ra5 {[%emt 0:
00:17]} 23. bxa4 {[%emt 0:00:03]} Nxd5 {[%emt 0:00:05]} 24. Nxd5 {[%emt 0:00:
04]} Rxd5 {[%emt 0:00:02]} 25. Rfe1+ {[%emt 0:00:04]} Kf8 {[%emt 0:00:07]} 26.
Bg3 {[%emt 0:00:10]} Rg7 {[%emt 0:00:06]} 27. Bh4 {[%emt 0:00:05]} Qd6 {
[%emt 0:00:08]} 28. g4 {[%emt 0:00:17]} fxg4 {[%emt 0:00:09]} 29. Kh1 {[%emt 0:
00:02]} Rd7 {[%emt 0:00:02]} 30. fxg4 {[%emt 0:00:07]} Qb4 {[%emt 0:00:18]} 31.
g5 {[%emt 0:00:08]} Qb2 {[%emt 0:00:17]} 32. g6 {[%emt 0:00:06]} Rg7 {[%emt 0:
00:08]} 33. c4 {[%emt 0:00:07]} Re5 {[%emt 0:00:06]} 34. Reb1 {[%emt 0:00:11]}
Qd4 {[%emt 0:00:12]} 35. Bf6 {[%emt 0:00:06]} Qd5+ {[%emt 0:00:07]} 36. Kg1 {
[%emt 0:00:09]} Qe6 {[%emt 0:00:19]} 37. Bxe5 {[%emt 0:00:06]} Qxe5 {[%emt 0:
00:12]} 38. Re1 {[%emt 0:00:02]} Qg5+ {[%emt 0:00:09]} 39. Kh1 {[%emt 0:00:06]}
Qxg6 {[%emt 0:00:02]} 40. Rg1 {[%emt 0:00:07]} Qf6 {[%emt 0:00:09]} 41. Raf1 {
[%emt 0:00:03]} Qxf1 {[%emt 0:00:07]} 42. Rxf1+ {[%emt 0:00:02]} Kg8 {[%emt 0:
00:04]} 43. Rg1 {[%emt 0:00:03]} Rxg1+ {[%emt 0:00:07]} 44. Kxg1 {[%emt 0:00:
01]} Kf7 {[%emt 0:00:02]} 45. Kg2 {[%emt 0:00:03]} Ke7 {[%emt 0:00:01]} 46. Kg3
{[%emt 0:00:01]} c6 {[%emt 0:00:08]} 47. h3 {[%emt 0:00:01]} Kd6 {[%emt 0:00:
01]} 48. h4 {[%emt 0:00:04]} Ke7 {[%emt 0:00:01]} 49. Kg4 {[%emt 0:00:01]} Kf7
{[%emt 0:00:00]} 50. Kg5 {[%emt 0:00:01]} Kg7 {[%emt 0:00:02]} 51. h5 {[%emt 0:
00:02]} Kh7 {[%emt 0:00:00]} 52. Kf6 {[%emt 0:00:03]} b6 {[%emt 0:00:00]} 53.
Kg5 {[%emt 0:00:04]} Kg7 {[%emt 0:00:03]} 54. h6+ {[%emt 0:00:02]} Kh7 {
[%emt 0:00:01]} 55. Kh5 {[%emt 0:00:03]} b5 {[%emt 0:00:08]} 56. cxb5 {[%emt 0:
00:03]} cxb5 {[%emt 0:00:05]} 57. axb5 {[%emt 0:00:01]} Kg8 {[%emt 0:00:35]}
58. b6 {[%emt 0:00:02]} Kf8 {[%emt 0:00:00]} 59. b7 {[%emt 0:00:01]} Ke8 {
[%emt 0:00:00]} 60. b8=Q+ {[%emt 0:00:01]} Ke7 {[%emt 0:00:02]} 61. h7 {
[%emt 0:00:02]} Ke6 {[%emt 0:00:01]} 62. h8=Q {[%emt 0:00:02]} Kd5 {[%emt 0:00:
03]} 63. Qbe8 {[%emt 0:00:05]} Kc4 {[%emt 0:00:04]} 64. Qd8 {[%emt 0:00:03]}
Kc5 {[%emt 0:00:04]} 65. Qc3+ {[%emt 0:00:03]} Kb5 {[%emt 0:00:03]} 66. Qb8+ {
[%emt 0:00:02]} Ka4 {[%emt 0:00:06]} 67. Qcb3+ {[%emt 0:00:02]} Ka5 {[%emt 0:
00:04]} 68. Qa3# {[%emt 0:00:01] TallSnazzyBall won by checkmate} 1-0

[Event "Fast Chess"]
[Site "ChessKid.com"]
[Date "2020.04.10"]
[Round "2"]
[White "Rosenkranz, Benjamin"]
[Black "Li, Tobias"]
[Result "0-1"]
[ECO "C44"]
[WhiteElo "1147"]
[BlackElo "1246"]
[PlyCount "56"]
[EventDate "2020.??.??"]
[TimeControl "600"]
[WhiteClock "0:07:09"]
[BlackClock "0:07:01"]

1. e4 {[%emt 0:00:08]} e5 {[%emt 0:00:04]} 2. Nf3 {[%emt 0:00:00]} Nc6 {
[%emt 0:00:02]} 3. Ng1 {[%emt 0:00:00]} Nf6 {[%emt 0:00:02]} 4. Nf3 {[%emt 0:
00:00]} Bc5 {[%emt 0:00:03]} 5. Bd3 {[%emt 0:00:04]} Ng4 {[%emt 0:00:06]} 6.
O-O {[%emt 0:00:03]} Nxf2 {[%emt 0:00:03]} 7. Rxf2 {[%emt 0:00:02]} Bxf2+ {
[%emt 0:00:02]} 8. Kxf2 {[%emt 0:00:01]} O-O {[%emt 0:00:04]} 9. Nc3 {[%emt 0:
00:03]} d6 {[%emt 0:00:02]} 10. g3 {[%emt 0:00:12]} Bg4 {[%emt 0:00:08]} 11.
Bb5 {[%emt 0:00:10]} Nd4 {[%emt 0:00:03]} 12. d3 {[%emt 0:00:12]} Bxf3 {
[%emt 0:00:04]} 13. Qg1 {[%emt 0:00:10]} Nxb5 {[%emt 0:00:07]} 14. Nxb5 {
[%emt 0:00:03]} Bg4 {[%emt 0:00:04]} 15. Be3 {[%emt 0:00:16]} c6 {[%emt 0:00:
15]} 16. Nc3 {[%emt 0:00:06]} d5 {[%emt 0:00:08]} 17. exd5 {[%emt 0:00:04]}
cxd5 {[%emt 0:00:04]} 18. d4 {[%emt 0:00:06]} Re8 {[%emt 0:00:16]} 19. dxe5 {
[%emt 0:00:03]} d4 {[%emt 0:00:03]} 20. Bf4 {[%emt 0:00:09]} dxc3 {[%emt 0:00:
03]} 21. bxc3 {[%emt 0:00:02]} Rc8 {[%emt 0:00:08]} 22. c4 {[%emt 0:00:07]}
Rxc4 {[%emt 0:00:04]} 23. Qb1 {[%emt 0:00:15]} Qd4+ {[%emt 0:00:18]} 24. Be3 {
[%emt 0:00:10]} Qxe5 {[%emt 0:00:16]} 25. Bxa7 {[%emt 0:00:12]} h6 {[%emt 0:00:
12]} 26. Qd1 {[%emt 0:00:09]} Bxd1 {[%emt 0:00:03]} 27. Rxd1 {[%emt 0:00:03]}
Rxc2+ {[%emt 0:00:03]} 28. Kf3 {[%emt 0:00:09]} Qf5# {[%emt 0:00:04]
OnlyHungryKiwi won by checkmate} 0-1

[Event "Fast Chess"]
[Site "ChessKid.com"]
[Date "2020.04.10"]
[Round "3"]
[White "Li, Tobias"]
[Black "Georgiev, Maximilian"]
[Result "1-0"]
[ECO "B01"]
[WhiteElo "1257"]
[BlackElo "1343"]
[PlyCount "83"]
[EventDate "2020.??.??"]
[TimeControl "600"]
[WhiteClock "0:07:03"]
[BlackClock "0:05:09"]

1. e4 {[%emt 0:00:00]} d5 {[%emt 0:00:01]} 2. exd5 {[%emt 0:00:04]} Qxd5 {
[%emt 0:00:01]} 3. Nc3 {[%emt 0:00:01]} Qd8 {[%emt 0:00:02]} 4. Nf3 {[%emt 0:
00:01]} Nf6 {[%emt 0:00:02]} 5. Bc4 {[%emt 0:00:05]} e6 {[%emt 0:00:01]} 6. d4
{[%emt 0:00:04]} Bb4 {[%emt 0:00:03]} 7. Bd2 {[%emt 0:00:02]} O-O {[%emt 0:00:
04]} 8. O-O {[%emt 0:00:04]} h6 {[%emt 0:00:01]} 9. h3 {[%emt 0:00:05]} a6 {
[%emt 0:00:04]} 10. a3 {[%emt 0:00:03]} Ba5 {[%emt 0:00:02]} 11. b4 {[%emt 0:
00:35]} Bb6 {[%emt 0:00:02]} 12. Be3 {[%emt 0:00:11]} Nc6 {[%emt 0:00:08]} 13.
Re1 {[%emt 0:00:26]} a5 {[%emt 0:00:09]} 14. Ne5 {[%emt 0:00:11]} Nxe5 {
[%emt 0:00:05]} 15. dxe5 {[%emt 0:00:01]} Qxd1 {[%emt 0:00:04]} 16. Raxd1 {
[%emt 0:00:07]} Ne8 {[%emt 0:00:05]} 17. Bxb6 {[%emt 0:00:02]} cxb6 {[%emt 0:
00:02]} 18. bxa5 {[%emt 0:00:07]} bxa5 {[%emt 0:00:03]} 19. Rd8 {[%emt 0:00:16]
} f6 {[%emt 0:00:08]} 20. Bxe6+ {[%emt 0:00:11]} Bxe6 {[%emt 0:00:13]} 21. Rxa8
{[%emt 0:00:03]} fxe5 {[%emt 0:00:03]} 22. Rxe5 {[%emt 0:00:06]} Nc7 {[%emt 0:
00:05]} 23. Rxf8+ {[%emt 0:00:11]} Kxf8 {[%emt 0:00:03]} 24. Re1 {[%emt 0:00:
03]} b5 {[%emt 0:00:06]} 25. a4 {[%emt 0:00:05]} b4 {[%emt 0:00:02]} 26. Ne4 {
[%emt 0:00:08]} Bf5 {[%emt 0:00:11]} 27. c3 {[%emt 0:00:05]} Nd5 {[%emt 0:00:
04]} 28. cxb4 {[%emt 0:00:07]} axb4 {[%emt 0:00:05]} 29. Nc5 {[%emt 0:00:06]}
Bc2 {[%emt 0:00:14]} 30. Rc1 {[%emt 0:00:10]} b3 {[%emt 0:00:03]} 31. Nxb3 {
[%emt 0:00:25]} Bxb3 {[%emt 0:00:02]} 32. a5 {[%emt 0:00:01]} Nb4 {[%emt 0:00:
04]} 33. Rb1 {[%emt 0:00:08]} Nc6 {[%emt 0:00:07]} 34. Rxb3 {[%emt 0:00:04]}
Nxa5 {[%emt 0:00:00]} 35. Rb8+ {[%emt 0:00:02]} Kf7 {[%emt 0:00:03]} 36. Ra8 {
[%emt 0:00:04]} Nc6 {[%emt 0:00:04]} 37. Rc8 {[%emt 0:00:03]} Ne7 {[%emt 0:00:
06]} 38. Rc7 {[%emt 0:00:02]} Ke6 {[%emt 0:00:03]} 39. Ra7 {[%emt 0:00:08]} Nc8
{[%emt 0:00:06]} 40. Rxg7 {[%emt 0:00:02]} Kf6 {[%emt 0:00:03]} 41. Rh7 {
[%emt 0:00:05]} Kg6 {[%emt 0:00:03]} 42. Rc7 {[%emt 0:00:09] OnlyHungryKiwi
won by resignation} 1-0

[Event "Fast Chess"]
[Site "ChessKid.com"]
[Date "2020.04.10"]
[Round "3"]
[White "Li, Patrick"]
[Black "Rosenkranz, Benjamin"]
[Result "1-0"]
[ECO "C55"]
[WhiteElo "1014"]
[BlackElo "1136"]
[PlyCount "109"]
[EventDate "2020.??.??"]
[TimeControl "600"]
[WhiteClock "0:03:43"]
[BlackClock "0:03:45"]

1. e4 {[%emt 0:00:04]} e5 {[%emt 0:00:03]} 2. Nf3 {[%emt 0:00:00]} Nc6 {
[%emt 0:00:04]} 3. Nc3 {[%emt 0:00:01]} d6 {[%emt 0:00:08]} 4. Bc4 {[%emt 0:00:
02]} Nf6 {[%emt 0:00:05]} 5. Ng5 {[%emt 0:00:01]} d5 {[%emt 0:00:07]} 6. exd5 {
[%emt 0:00:04]} Nb4 {[%emt 0:00:07]} 7. d6 {[%emt 0:00:08]} Be6 {[%emt 0:00:26]
} 8. Bxe6 {[%emt 0:00:09]} fxe6 {[%emt 0:00:03]} 9. dxc7 {[%emt 0:00:07]} Qxc7
{[%emt 0:00:07]} 10. Nxe6 {[%emt 0:00:05]} Qe7 {[%emt 0:00:05]} 11. Nxf8 {
[%emt 0:00:10]} Qxf8 {[%emt 0:00:07]} 12. Nb5 {[%emt 0:00:02]} O-O-O {[%emt 0:
00:06]} 13. c3 {[%emt 0:00:10]} Nd3+ {[%emt 0:00:09]} 14. Ke2 {[%emt 0:00:18]}
Nxc1+ {[%emt 0:00:04]} 15. Qxc1 {[%emt 0:00:13]} Kb8 {[%emt 0:00:04]} 16. d3 {
[%emt 0:00:05]} a6 {[%emt 0:00:09]} 17. Na3 {[%emt 0:00:10]} b5 {[%emt 0:00:07]
} 18. c4 {[%emt 0:00:20]} bxc4 {[%emt 0:00:03]} 19. Nxc4 {[%emt 0:00:03]} Rc8 {
[%emt 0:00:06]} 20. Qe3 {[%emt 0:00:03]} e4 {[%emt 0:00:07]} 21. dxe4 {[%emt 0:
00:12]} Rxc4 {[%emt 0:00:03]} 22. Qb6+ {[%emt 0:00:11]} Ka8 {[%emt 0:00:11]}
23. Qxa6+ {[%emt 0:00:10]} Kb8 {[%emt 0:00:05]} 24. Qxc4 {[%emt 0:00:05]} Qd8 {
[%emt 0:00:19]} 25. Rhd1 {[%emt 0:00:05]} Qb6 {[%emt 0:00:18]} 26. Rd3 {
[%emt 0:00:15]} Qxb2+ {[%emt 0:00:05]} 27. Rd2 {[%emt 0:00:20]} Qxa1 {[%emt 0:
00:04]} 28. Qf7 {[%emt 0:00:13]} Rg8 {[%emt 0:00:12]} 29. Qe7 {[%emt 0:00:10]}
Qc3 {[%emt 0:00:17]} 30. Rd8+ {[%emt 0:00:05]} Rxd8 {[%emt 0:00:06]} 31. Qxd8+
{[%emt 0:00:03]} Qc8 {[%emt 0:00:04]} 32. Qe7 {[%emt 0:00:05]} Qg8 {[%emt 0:00:
13]} 33. Qe5+ {[%emt 0:00:11]} Kc8 {[%emt 0:00:12]} 34. Qf5+ {[%emt 0:00:06]}
Kc7 {[%emt 0:00:12]} 35. Qf4+ {[%emt 0:00:13]} Kb7 {[%emt 0:00:10]} 36. Qf3 {
[%emt 0:00:21]} Qe8 {[%emt 0:00:10]} 37. e5+ {[%emt 0:00:04]} Kb6 {[%emt 0:00:
09]} 38. Qe3+ {[%emt 0:00:08]} Kc6 {[%emt 0:00:05]} 39. exf6 {[%emt 0:00:04]}
Qxe3+ {[%emt 0:00:02]} 40. Kxe3 {[%emt 0:00:09]} gxf6 {[%emt 0:00:10]} 41. f4 {
[%emt 0:00:04]} Kb5 {[%emt 0:00:05]} 42. g4 {[%emt 0:00:03]} Ka4 {[%emt 0:00:
03]} 43. h4 {[%emt 0:00:02]} Ka3 {[%emt 0:00:01]} 44. Ke4 {[%emt 0:00:01]} Kxa2
{[%emt 0:00:04]} 45. Kf5 {[%emt 0:00:01]} Kb3 {[%emt 0:00:01]} 46. Kxf6 {
[%emt 0:00:02]} Kc4 {[%emt 0:00:01]} 47. f5 {[%emt 0:00:01]} Kd5 {[%emt 0:00:
01]} 48. Kf7 {[%emt 0:00:03]} Kd6 {[%emt 0:00:01]} 49. f6 {[%emt 0:00:02]} Ke5
{[%emt 0:00:02]} 50. g5 {[%emt 0:00:03]} Kf5 {[%emt 0:00:02]} 51. Kg7 {[%emt 0:
00:03]} h5 {[%emt 0:00:07]} 52. gxh6 {[%emt 0:00:05]} Kg4 {[%emt 0:00:05]} 53.
f7 {[%emt 0:00:01]} Kxh4 {[%emt 0:00:18]} 54. f8=Q {[%emt 0:00:03]} Kh5 {
[%emt 0:00:02]} 55. h7 {[%emt 0:00:18] WideClassyQuiz won by resignation} 1-0

[Event "Fast Chess"]
[Site "ChessKid.com"]
[Date "2020.04.11"]
[Round "1"]
[White "Dai, Lana"]
[Black "Georgiev, Maximilian"]
[Result "1-0"]
[ECO "B01"]
[WhiteElo "1256"]
[BlackElo "1331"]
[PlyCount "37"]
[EventDate "2020.??.??"]
[TimeControl "300+10"]
[WhiteClock "0:03:56"]
[BlackClock "0:02:55"]

1. e4 {[%emt 0:00:11]} d5 {[%emt 0:00:11]} 2. exd5 {[%emt 0:00:12]} Qxd5 {
[%emt 0:00:11]} 3. Nc3 {[%emt 0:00:12]} Qd8 {[%emt 0:00:11]} 4. Bc4 {[%emt 0:
00:13]} Nf6 {[%emt 0:00:13]} 5. d3 {[%emt 0:00:12]} h6 {[%emt 0:00:13]} 6. Bf4
{[%emt 0:00:11]} a6 {[%emt 0:00:14]} 7. Nf3 {[%emt 0:00:12]} e6 {[%emt 0:00:13]
} 8. a3 {[%emt 0:00:13]} Bc5 {[%emt 0:00:12]} 9. Ne5 {[%emt 0:00:20]} O-O {
[%emt 0:00:16]} 10. O-O {[%emt 0:00:15]} Qd4 {[%emt 0:00:16]} 11. Bg3 {[%emt 0:
00:21]} Bd6 {[%emt 0:00:17]} 12. Ra2 {[%emt 0:00:47]} Bxe5 {[%emt 0:00:13]} 13.
Bxe5 {[%emt 0:00:12]} Qxe5 {[%emt 0:00:12]} 14. Re1 {[%emt 0:00:19]} Qd6 {
[%emt 0:00:14]} 15. Ne4 {[%emt 0:00:25]} Qb6 {[%emt 0:00:14]} 16. Nxf6+ {
[%emt 0:00:17]} gxf6 {[%emt 0:00:13]} 17. Qg4+ {[%emt 0:00:13]} Kh8 {[%emt 0:
00:13]} 18. Qh4 {[%emt 0:00:13]} Rg8 {[%emt 0:00:21]} 19. Qxh6# {[%emt 0:00:18]
TopBrownCave won by checkmate} 1-0

[Event "Fast Chess"]
[Site "ChessKid.com"]
[Date "2020.04.11"]
[Round "1"]
[White "Li, Tobias"]
[Black "Sasse, Gabriel"]
[Result "0-1"]
[ECO "C50"]
[WhiteElo "1249"]
[BlackElo "1238"]
[PlyCount "94"]
[EventDate "2020.??.??"]
[TimeControl "300+10"]
[WhiteClock "0:01:22"]
[BlackClock "0:00:20"]

1. e4 {[%emt 0:00:11]} e5 {[%emt 0:00:10]} 2. Nf3 {[%emt 0:00:11]} Nc6 {
[%emt 0:00:10]} 3. Nc3 {[%emt 0:00:10]} Nf6 {[%emt 0:00:11]} 4. Bc4 {[%emt 0:
00:11]} h6 {[%emt 0:00:10]} 5. h3 {[%emt 0:00:12]} Bc5 {[%emt 0:00:11]} 6. O-O
{[%emt 0:00:11]} d6 {[%emt 0:00:10]} 7. d3 {[%emt 0:00:12]} O-O {[%emt 0:00:10]
} 8. a3 {[%emt 0:00:11]} Ne8 {[%emt 0:00:11]} 9. b4 {[%emt 0:00:13]} Qf6 {
[%emt 0:00:11]} 10. bxc5 {[%emt 0:00:12]} dxc5 {[%emt 0:00:10]} 11. Be3 {
[%emt 0:00:23]} Qg6 {[%emt 0:00:12]} 12. Bxc5 {[%emt 0:00:17]} Nd6 {[%emt 0:00:
13]} 13. Bxd6 {[%emt 0:00:12]} cxd6 {[%emt 0:00:10]} 14. Qe2 {[%emt 0:00:22]}
Bxh3 {[%emt 0:00:12]} 15. Nh4 {[%emt 0:00:12]} Qg5 {[%emt 0:00:16]} 16. Qf3 {
[%emt 0:00:19]} Bg4 {[%emt 0:00:19]} 17. Qg3 {[%emt 0:00:16]} Nd4 {[%emt 0:00:
17]} 18. Rfe1 {[%emt 0:00:35]} Nxc2 {[%emt 0:00:15]} 19. Rac1 {[%emt 0:00:11]}
Nxe1 {[%emt 0:00:12]} 20. Rxe1 {[%emt 0:00:10]} Qd2 {[%emt 0:00:18]} 21. Rf1 {
[%emt 0:00:18]} Be2 {[%emt 0:00:13]} 22. Nxe2 {[%emt 0:00:11]} Qxe2 {[%emt 0:
00:12]} 23. Qf3 {[%emt 0:00:21]} Qb2 {[%emt 0:00:18]} 24. Bd5 {[%emt 0:00:19]}
Rab8 {[%emt 0:00:14]} 25. a4 {[%emt 0:00:14]} Qb4 {[%emt 0:00:13]} 26. Nf5 {
[%emt 0:00:18]} Qxa4 {[%emt 0:00:14]} 27. Ne7+ {[%emt 0:00:10]} Kh8 {[%emt 0:
00:13]} 28. Rb1 {[%emt 0:00:25]} Rbe8 {[%emt 0:00:22]} 29. Nf5 {[%emt 0:00:15]}
g6 {[%emt 0:00:14]} 30. Nxh6 {[%emt 0:00:13]} Qc2 {[%emt 0:00:20]} 31. Rf1 {
[%emt 0:00:14]} Kg7 {[%emt 0:00:16]} 32. Ng4 {[%emt 0:00:14]} Rh8 {[%emt 0:00:
12]} 33. Bxb7 {[%emt 0:00:14]} Re7 {[%emt 0:00:12]} 34. Bd5 {[%emt 0:00:13]}
Rc7 {[%emt 0:00:12]} 35. Ne3 {[%emt 0:00:23]} Qb2 {[%emt 0:00:33]} 36. g3 {
[%emt 0:00:39]} Qd4 {[%emt 0:00:13]} 37. Ng4 {[%emt 0:00:16]} Qa4 {[%emt 0:00:
20]} 38. Kg2 {[%emt 0:00:36]} Qb4 {[%emt 0:00:13]} 39. Rc1 {[%emt 0:00:17]} Re7
{[%emt 0:00:21]} 40. Rc4 {[%emt 0:00:16]} Qb2 {[%emt 0:00:15]} 41. Ra4 {
[%emt 0:00:12]} Qb1 {[%emt 0:00:14]} 42. Nh2 {[%emt 0:00:16]} Qb6 {[%emt 0:00:
19]} 43. Rc4 {[%emt 0:00:13]} Qb5 {[%emt 0:00:16]} 44. Ng4 {[%emt 0:00:10]} Qb3
{[%emt 0:00:20]} 45. Rc6 {[%emt 0:00:21]} Qb8 {[%emt 0:00:17]} 46. Ra6 {
[%emt 0:00:13]} Qb1 {[%emt 0:00:22]} 47. Qe3 {[%emt 0:00:10]} Qh1# {[%emt 0:00:
14] LimeFarActor won by checkmate} 0-1

[Event "Fast Chess"]
[Site "ChessKid.com"]
[Date "2020.04.11"]
[Round "2"]
[White "Sasse, Gabriel"]
[Black "Dai, Lana"]
[Result "0-1"]
[ECO "C50"]
[WhiteElo "1231"]
[BlackElo "1264"]
[PlyCount "48"]
[EventDate "2020.??.??"]
[TimeControl "300+10"]
[WhiteClock "0:03:09"]
[BlackClock "0:03:15"]

1. e4 {[%emt 0:00:10]} e5 {[%emt 0:00:11]} 2. Nf3 {[%emt 0:00:10]} Nc6 {
[%emt 0:00:11]} 3. Nc3 {[%emt 0:00:10]} Bc5 {[%emt 0:00:11]} 4. Bc4 {[%emt 0:
00:10]} d6 {[%emt 0:00:14]} 5. d3 {[%emt 0:00:12]} h6 {[%emt 0:00:15]} 6. O-O {
[%emt 0:00:13]} Bg4 {[%emt 0:00:11]} 7. h3 {[%emt 0:00:13]} Bh5 {[%emt 0:00:11]
} 8. Nd5 {[%emt 0:00:16]} Nd4 {[%emt 0:00:22]} 9. Be3 {[%emt 0:00:17]} Nxf3+ {
[%emt 0:00:20]} 10. gxf3 {[%emt 0:00:12]} Bxe3 {[%emt 0:00:13]} 11. Nxe3 {
[%emt 0:00:13]} Qg5+ {[%emt 0:00:14]} 12. Kh1 {[%emt 0:00:18]} Qh4 {[%emt 0:00:
17]} 13. Nd5 {[%emt 0:00:21]} Qxh3+ {[%emt 0:00:14]} 14. Kg1 {[%emt 0:00:11]}
Bxf3 {[%emt 0:00:16]} 15. Qxf3 {[%emt 0:00:22]} Qxf3 {[%emt 0:00:11]} 16. Nxc7+
{[%emt 0:00:11]} Kd8 {[%emt 0:00:16]} 17. Nxa8 {[%emt 0:00:11]} Qg4+ {[%emt 0:
00:11]} 18. Kh1 {[%emt 0:00:17]} Qf3+ {[%emt 0:00:15]} 19. Kg1 {[%emt 0:00:12]}
Nf6 {[%emt 0:00:28]} 20. Bxf7 {[%emt 0:00:13]} Ng4 {[%emt 0:00:13]} 21. Bh5 {
[%emt 0:00:34]} Qh3 {[%emt 0:00:22]} 22. Bxg4 {[%emt 0:00:15]} Qxg4+ {[%emt 0:
00:11]} 23. Kh1 {[%emt 0:00:14]} Rf8 {[%emt 0:00:12]} 24. Rg1 {[%emt 0:00:13]}
Qh3# {[%emt 0:00:15] TopBrownCave won by checkmate} 0-1

[Event "Fast Chess"]
[Site "ChessKid.com"]
[Date "2020.04.11"]
[Round "2"]
[White "Li, Patrick"]
[Black "Li, Tobias"]
[Result "0-1"]
[ECO "C50"]
[WhiteElo "1010"]
[BlackElo "1253"]
[PlyCount "100"]
[EventDate "2020.??.??"]
[TimeControl "300+10"]
[WhiteClock "0:02:37"]
[BlackClock "0:01:06"]

1. e4 {[%emt 0:00:10]} e5 {[%emt 0:00:10]} 2. Nf3 {[%emt 0:00:09]} Nc6 {
[%emt 0:00:11]} 3. Nc3 {[%emt 0:00:10]} Nf6 {[%emt 0:00:10]} 4. Bc4 {[%emt 0:
00:10]} h6 {[%emt 0:00:12]} 5. O-O {[%emt 0:00:10]} Bc5 {[%emt 0:00:10]} 6. h3
{[%emt 0:00:11]} O-O {[%emt 0:00:10]} 7. d3 {[%emt 0:00:15]} d6 {[%emt 0:00:10]
} 8. Bb5 {[%emt 0:00:15]} Bd7 {[%emt 0:00:12]} 9. Bxc6 {[%emt 0:00:13]} Bxc6 {
[%emt 0:00:12]} 10. d4 {[%emt 0:00:19]} Bb6 {[%emt 0:00:17]} 11. dxe5 {[%emt 0:
00:13]} dxe5 {[%emt 0:00:10]} 12. Nxe5 {[%emt 0:00:14]} Qxd1 {[%emt 0:00:18]}
13. Rxd1 {[%emt 0:00:10]} Nxe4 {[%emt 0:00:11]} 14. Nxe4 {[%emt 0:00:13]} Bxe4
{[%emt 0:00:11]} 15. c3 {[%emt 0:00:16]} Rfe8 {[%emt 0:00:15]} 16. Nf3 {
[%emt 0:00:14]} Bxf3 {[%emt 0:00:13]} 17. gxf3 {[%emt 0:00:12]} Rad8 {[%emt 0:
00:15]} 18. Rxd8 {[%emt 0:00:14]} Rxd8 {[%emt 0:00:11]} 19. Be3 {[%emt 0:00:16]
} Bxe3 {[%emt 0:00:18]} 20. fxe3 {[%emt 0:00:10]} Rd3 {[%emt 0:00:11]} 21. Re1
{[%emt 0:00:19]} Rd2 {[%emt 0:00:11]} 22. Kf1 {[%emt 0:00:14]} Rxb2 {[%emt 0:
00:12]} 23. Rd1 {[%emt 0:00:12]} Rc2 {[%emt 0:00:13]} 24. Rd7 {[%emt 0:00:09]}
Rxc3 {[%emt 0:00:11]} 25. f4 {[%emt 0:00:18]} b6 {[%emt 0:00:14]} 26. Rd8+ {
[%emt 0:00:13]} Kh7 {[%emt 0:00:12]} 27. Ra8 {[%emt 0:00:14]} a5 {[%emt 0:00:
14]} 28. Rc8 {[%emt 0:00:16]} Rc2 {[%emt 0:00:18]} 29. Kg1 {[%emt 0:00:19]} Rc3
{[%emt 0:00:23]} 30. Re8 {[%emt 0:00:18]} Ra3 {[%emt 0:00:15]} 31. Re7 {
[%emt 0:00:12]} Rxa2 {[%emt 0:00:13]} 32. Rxf7 {[%emt 0:00:10]} Rc2 {[%emt 0:
00:11]} 33. h4 {[%emt 0:00:19]} Kg6 {[%emt 0:00:13]} 34. Rd7 {[%emt 0:00:14]}
Kh5 {[%emt 0:00:14]} 35. Rd5+ {[%emt 0:00:17]} Kxh4 {[%emt 0:00:11]} 36. Rd8 {
[%emt 0:00:29]} Kg3 {[%emt 0:00:15]} 37. Kf1 {[%emt 0:00:17]} Kf3 {[%emt 0:00:
11]} 38. Kg1 {[%emt 0:00:21]} g5 {[%emt 0:00:17]} 39. fxg5 {[%emt 0:00:14]}
hxg5 {[%emt 0:00:11]} 40. Rd3 {[%emt 0:00:14]} g4 {[%emt 0:00:19]} 41. Rd1 {
[%emt 0:00:34]} Kxe3 {[%emt 0:00:12]} 42. Re1+ {[%emt 0:00:12]} Kf3 {[%emt 0:
00:11]} 43. Rf1+ {[%emt 0:00:14]} Kg3 {[%emt 0:00:12]} 44. Rb1 {[%emt 0:00:16]}
b5 {[%emt 0:00:13]} 45. Kf1 {[%emt 0:00:17]} Kf3 {[%emt 0:00:12]} 46. Ke1 {
[%emt 0:00:14]} g3 {[%emt 0:00:10]} 47. Rxb5 {[%emt 0:00:11]} g2 {[%emt 0:00:
13]} 48. Rg5 {[%emt 0:00:14]} Ke3 {[%emt 0:00:14]} 49. Re5+ {[%emt 0:00:18]}
Kf4 {[%emt 0:00:12]} 50. Re2 {[%emt 0:00:14]} g1=Q# {[%emt 0:00:13]
OnlyHungryKiwi won by checkmate} 0-1